Cogmind - Beta 11.1 @@@ ROGUE MODE // 2022.07.10 @ 02:01:55 Player: Nix Result: Destroyed by B-75 Beast with Magnetic Acceleration Cannon Performance ------------- Evolutions (4) 2000 Regions Visited (8) 1600 Robots Destroyed (24) 120 Value Destroyed (746) 746 Prototype IDs (2) 40 Alien Tech Used (0) 0 Bonus (0) 0 TOTAL SCORE: 4506 Bonus ------- None Cogmind --------- Core Integrity 0/850 Matter 127/300 Energy 100/100 System Corruption 2% Temperature Cool (0) Movement Core (50) Location -6/Extension Parts ------- > --- POWER (2) -------- (None) > --- PROPULSION (5) --- (None) > --- UTILITY (5) ------ (None) > --- WEAPON (3) ------- (None) > --- INVENTORY (5) ---- Thermal Shield High-powered Shock Rifle High-powered Field Laser Plasma Rifle Heavy Ion Cannon Peak State ------------ > --- POWER ------------ Improved Deuterium Engine Improved Deuterium Engine > --- PROPULSION ------- Wheel Wheel Compact Wheel Compact Wheel Compact Wheel > --- UTILITY ---------- High-capacity Storage Unit Machine Analyzer Advanced Sensor Array Improved Signal Interpreter Experimental Targeting Computer > --- WEAPON ----------- High-powered Shock Rifle Advanced Assault Cannon Heavy Pick > --- INVENTORY -------- Light Deuterium Engine Aluminum Leg High-capacity Storage Unit Huge Storage Unit Structural Scanner Sensor Array Advanced Sensor Array Advanced Sensor Array Terrain Scanner Kinecellerator Thermal Shield Improved Hardlight Generator High-powered Tractor Beam High-powered Shock Rifle Heavy Laser High-powered Field Laser Heavy Ion Cannon Assault Rifle Heavy Flak Cannon Plasma Cutter [Rating: 51] Favorites ----------- Power Improved Deuterium Engine Engine Improved Deuterium Engine Power Core Light Nuclear Core Propulsion Wheel Leg Aluminum Leg Wheel Wheel Utility Sensor Array Device Sensor Array Storage High-capacity Storage Unit Processor Improved Signal Interpreter Hackware Improved Hacking Suite Weapon Assault Rifle Energy Gun High-powered Shock Rifle Energy Cannon Beam Cannon Ballistic Gun Assault Rifle Ballistic Cannon Advanced Assault Cannon Special Weapon Plasma Cutter Piercing Weapon Heavy Pick Build | -11 -10 -10 -10 -9 -8 -7 -6 -6 ------- Run | Scr Mat Min Exi Min Mat Fac Fac Ext Slots Evolved 8 | . . . . . 4 2 2 . Power 1 | . . . . . 1 . . . Propulsion 3 | . . . . . 1 2 . . Utility 3 | . . . . . 2 . 1 . Weapon 1 | . . . . . . . 1 . Parts Attached 74 | 5 3 . 1 2 14 19 14 16 Power 10 | 1 . . . . 3 5 . 1 Engine 9 | 1 . . . . 2 5 . 1 Core 1 | . . . . . 1 . . . Reactor . | . . . . . . . . . Propulsion 20 | 2 . . . . 5 5 4 4 Treads . | . . . . . . . . . Leg 3 | . . . . . . 2 . 1 Wheel 17 | 2 . . . . 5 3 4 3 Hover . | . . . . . . . . . Flight . | . . . . . . . . . Utility 25 | . 2 . 1 2 4 5 2 9 Device 12 | . 1 . . . 2 2 . 7 Storage 6 | . 1 . 1 2 1 . . 1 Processor 6 | . . . . . 1 3 1 1 Hackware 1 | . . . . . . . 1 . Protection . | . . . . . . . . . Artifact . | . . . . . . . . . Weapon 19 | 2 1 . . . 2 4 8 2 Energy Gun 5 | . . . . . . . 5 . Energy Cannon 3 | . 1 . . . . 2 . . Ballistic Gun 6 | 2 . . . . 2 2 . . Ballistic Cannon 3 | . . . . . . . 1 2 Launcher . | . . . . . . . . . Special Weapon 1 | . . . . . . . 1 . Impact Weapon . | . . . . . . . . . Slashing Weapon . | . . . . . . . . . Piercing Weapon 1 | . . . . . . . 1 . Special Melee Weapon . | . . . . . . . . . Unidentified Prototypes 2 | . . . . . . . 1 1 Parts Lost 25 | . . . . . 5 1 3 16 Power 6 | . . . . . 2 1 . 3 Propulsion 10 | . . . . . 3 . 2 5 Utility 6 | . . . . . . . 1 5 Weapon 3 | . . . . . . . . 3 Highest Loss Streak 9 | . . . . . 4 1 3 9 To Critical Strikes . | . . . . . . . . . Average Slot Usage (%) 93 | . 78 100 100 100 94 91 98 82 Engine 11 | . 14 14 14 14 11 8 13 11 Core 1 | . . . . . 2 5 . . Leg 4 | . . . . . . 11 8 . Wheel 24 | . 28 28 28 28 26 22 23 20 Device 11 | . 6 14 14 14 17 14 7 8 Storage 9 | . 1 14 14 14 15 7 6 5 Processor 7 | . . . . . 2 7 13 14 Energy Gun 2 | . . . . . . . 9 3 Energy Cannon 5 | . 1 14 14 14 9 1 1 . Ballistic Gun 7 | . 26 14 14 14 9 9 1 . Ballistic Cannon 2 | . . . . . . . 4 9 Piercing Weapon 1 | . . . . . . . 1 4 Naked Turns 16 | . . . . . . . . 16 Heaviest Build 91 | 9 13 13 51 91 58 73 79 87 Greatest Support 68 | 26 26 26 26 26 36 36 68 68 Greatest Overweight (x) 18 | 2 . . 1 3 3 2 2 18 Average Overweight (x) . | . . . . 1 1 1 1 1 Largest Inventory Capacity 25 | 5 5 5 20 25 20 20 20 20 Average Capacity 16 | 5 5 5 7 21 20 20 20 19 Most Carried 20 | 5 5 5 7 9 12 13 20 20 Average Carried 11 | 3 5 5 5 7 8 9 16 18 Final Capacity 20 | 5 5 5 20 20 20 20 20 5 Final Carried 20 | 5 5 5 7 9 11 13 20 5 Class Distribution -------------------- 42% | Mutant 26% | Scavenger-Mutant 16% | Scavenger-Skirmisher 13% | Scavenger-Assassin Dominant Class ---------------- Mutant | -10/Materials Mutant | -10/Mines Mutant | -10/Exiles Mutant | -9/Mines Mutant | -8/Materials Scavenger-Mutant | -7/Factory Scavenger-Mutant | -6/Factory Scavenger-Assassin | -6/Extension Resources | -11 -10 -10 -10 -9 -8 -7 -6 -6 ----------- Run | Scr Mat Min Exi Min Mat Fac Fac Ext Matter Collected 1209 | 270 20 . . 30 134 109 348 298 Remotely . | . . . . . . . . . Salvage Created 1149 | 34 . . . . 279 177 345 314 Parts 60 | 5 . . . . 22 8 11 14 Haulers Intercepted 1 | . . . . . 1 . . . Recyclers Shooed 1 | . . . . . . . 1 . Parts Field Recycled . | . . . . . . . . . Retrieved Matter . | . . . . . . . . . Parts Self-Destructed . | . . . . . . . . . Prevented . | . . . . . . . . . Kills | -11 -10 -10 -10 -9 -8 -7 -6 -6 ------- Run | Scr Mat Min Exi Min Mat Fac Fac Ext Combat Hostiles Destroyed 11 | . . . . . 3 2 . 6 Guns 2 | . . . . . 1 1 . . Cannons 9 | . . . . . 2 1 . 6 Classes Destroyed 11 | 1 . . . . 5 3 1 1 Worker 3 | . . . . . 1 . 2 . Builder 1 | . . . . . 1 . . . Tunneler 2 | 2 . . . . . . . . Hauler 1 | . . . . . 1 . . . Recycler 2 | . . . . . . . 2 . Mechanic 1 | . . . . . . 1 . . Watcher 3 | . . . . . 1 1 1 . Grunt 4 | . . . . . . . . 4 Sentry 3 | . . . . . . 1 . 2 Hunter 3 | . . . . . 3 . . . Programmer 1 | . . . . . . 1 . . Best Kill Streak 5 | 2 . . . . 5 1 3 2 Combat Bots Only 2 | . . . . . 1 1 . 2 Max Kills in Single Turn 1 | 1 . . . . 1 1 1 1 Gunslinging . | . . . . . . . . . Exploded . | . . . . . . . . . Melee . | . . . . . . . . . Uniques/NPCs Destroyed . | . . . . . . . . . Combat | -11 -10 -10 -10 -9 -8 -7 -6 -6 -------- Run | Scr Mat Min Exi Min Mat Fac Fac Ext Damage Taken 2934 | . . . . . 535 274 389 1736 Core 922 | . . . . . 38 27 101 756 Absorbed by Shields 52 | . . . . . . . . 52 Regen/Repaired (Parts) 147 | . . . . . . 147 . . Core Remaining (%) 97 | 100 . . . 100 93 96 . . Volleys Fired 90 | 5 . . . . 24 15 22 24 Largest 3 | 2 . . . . 2 2 3 3 Hottest 168 | 40 . . . . 85 90 168 158 Shots Fired 174 | 10 . . . . 43 28 37 56 Gun 88 | 10 . . . . 20 17 33 8 Cannon 83 | . . . . . 23 11 1 48 Launcher . | . . . . . . . . . Special 3 | . . . . . . . 3 . Kinetic 96 | 10 . . . . 20 17 1 48 Thermal 52 | . . . . . 23 11 18 . Explosive . | . . . . . . . . . Electromagnetic 26 | . . . . . . . 18 8 Robot Hit Streak 11 | 2 . . . . 7 5 11 9 Robot Miss Streak 6 | 2 . . . . 6 2 5 6 Penetration Max . | . . . . . . . . . Secondary Targets . | . . . . . . . . . Shots Hit Robots 102 | 6 . . . . 22 16 18 40 Core Hits 54 | 3 . . . . 11 7 6 27 Critical Kills 2 | . . . . . . . . 2 Critical Parts Destroyed 1 | . . . . . . . . 1 Critical Strikes 3 | . . . . . . . . 3 Destroy 3 | . . . . . . . . 3 Melee Attacks 18 | . . . . . . . 16 2 Impact . | . . . . . . . . . Slashing . | . . . . . . . . . Piercing 18 | . . . . . . . 16 2 Sneak Attacks . | . . . . . . . . . Combat Hostiles . | . . . . . . . . . Follow-up Attacks . | . . . . . . . . . Damage Inflicted 2149 | 79 . . . . 405 328 468 869 Guns 956 | 79 . . . . 177 128 427 145 Cannons 1111 | . . . . . 228 200 . 683 Explosions . | . . . . . . . . . Melee . | . . . . . . . . . Ramming 82 | . . . . . . . 41 41 Kinetic 1067 | 79 . . . . 177 128 . 683 Thermal 529 | . . . . . 228 200 101 . Explosive . | . . . . . . . . . Electromagnetic 471 | . . . . . . . 326 145 Impact . | . . . . . . . . . Slashing . | . . . . . . . . . Piercing . | . . . . . . . . . Highest Corruption 7 | . . . . . . . 7 7 Average Corruption 2 | . . . . . . . 1 2 Corruption Purged 5 | . . . . . . . . 5 Corruption Blocked . | . . . . . . . . . Effects 11 | . . . . . . . 1 10 Message Errors 3 | . . . . . . . . 3 Matter Fused 2 | . . . . . . . . 2 Heat Flow Errors 3 | . . . . . . . . 3 Energy Discharges 3 | . . . . . . . 1 2 Overload Shots . | . . . . . . . . . Overflow Damage 1 | . . . . . . . 1 . Projectiles . | . . . . . . . . . Explosions . | . . . . . . . . . Melee 1 | . . . . . . . 1 . Knockbacks 17 | . . . . . . . . 17 Impact . | . . . . . . . . . Kinetic 17 | . . . . . . . . 17 Secondary . | . . . . . . . . . Self-Inflicted Damage 37 | . . . . . . . 20 17 Shots . | . . . . . . . . . Rammed 13 | . . . . . . . 1 12 Targets Rammed 13 | . . . . . . . 1 12 Kicked . | . . . . . . . . . Crushed . | . . . . . . . . . Highest Temperature 493 | . . . . . 234 257 253 493 Average Temperature 138 | . . . . . 105 107 86 191 Received Heat Transfer 756 | . . . . . 108 66 . 582 Effects 13 | . . . . . . . . 13 Shutdowns 2 | . . . . . . . . 2 Interference 7 | . . . . . . . . 7 Matter Decay 2 | . . . . . . . . 2 Damage (minor) 2 | . . . . . . . . 2 Siege Activations . | . . . . . . . . . Robots Corrupted 1 | . . . . . . . 1 . Combat Hostiles . | . . . . . . . . . Parts Fried 5 | . . . . . . . 5 . Impact Corruptions 1 | . . . . . . . 1 . Robots Melted . | . . . . . . . . . Combat Hostiles . | . . . . . . . . . Parts Melted 2 | . . . . . 2 . . . Heat Transferred 925 | . . . . . 481 259 185 . Parts Sabotaged . | . . . . . . . . . Parts Stolen . | . . . . . . . . . Parts Stripped . | . . . . . . . . . Power Chain Reactions . | . . . . . . . . . Missiles Intercepted . | . . . . . . . . . Alert | -11 -10 -10 -10 -9 -8 -7 -6 -6 ------- Run | Scr Mat Min Exi Min Mat Fac Fac Ext Peak Influence 124 | 10 6 1 . . 104 70 50 124 Initial 42 | . 6 1 . . . 42 34 24 Average 33 | 1 6 1 . . 47 41 31 39 Maximum Alert Level . | . . . . . . . . . Low Security (%) 100 | 100 100 100 . 100 100 100 100 100 Level 1 . | . . . . . . . . . Level 2 . | . . . . . . . . . Level 3 . | . . . . . . . . . Level 4 . | . . . . . . . . . Level 5 . | . . . . . . . . . High Security . | . . . . . . . . . Max Security . | . . . . . . . . . Squads Dispatched 9 | . . . . . 2 2 2 3 Investigation 4 | . . . . . 1 1 1 1 Extermination 1 | . . . . . . 1 . . Reinforcement 4 | . . . . . 1 . 1 2 Assault . | . . . . . . . . . Garrison . | . . . . . . . . . Intercept . | . . . . . . . . . Searches Triggered . | . . . . . . . . . Construction Impeded 1 | . . . . . . . . 1 Haulers Reinforced . | . . . . . . . . . Active Scanning Responses . | . . . . . . . . . Cargo Convoy Interrupts . | . . . . . . . . . Stealth | -11 -10 -10 -10 -9 -8 -7 -6 -6 --------- Run | Scr Mat Min Exi Min Mat Fac Fac Ext Distress Signals 1 | . . . . . . . . 1 Communications Jammed . | . . . . . . . . . Distress Signals . | . . . . . . . . . Times Spotted 42 | . . . . . 9 7 5 21 Peak Tracking Total 10 | . . . . . 5 4 3 10 Tactical Retreats 5 | . . . . . . . 1 4 Traps | -11 -10 -10 -10 -9 -8 -7 -6 -6 ------- Run | Scr Mat Min Exi Min Mat Fac Fac Ext Traps Triggered 4 | . . . . . 1 . . 3 Indirectly . | . . . . . . . . . Trap Hack Attempts . | . . . . . . . . . Triggered . | . . . . . . . . . Disarmed . | . . . . . . . . . Reprogrammed . | . . . . . . . . . Reused . | . . . . . . . . . Traps Extracted . | . . . . . . . . . Installed . | . . . . . . . . . Triggered . | . . . . . . . . . Machines | -11 -10 -10 -10 -9 -8 -7 -6 -6 ---------- Run | Scr Mat Min Exi Min Mat Fac Fac Ext Machines Disabled 1 | . . . . . . . 1 . Max in Single Turn 1 | . . . . . . . 1 . Machines Sabotaged . | . . . . . . . . . Garrisons Compromised . | . . . . . . . . . Overloaded Fab Kills . | . . . . . . . . . Hacking | -11 -10 -10 -10 -9 -8 -7 -6 -6 --------- Run | Scr Mat Min Exi Min Mat Fac Fac Ext Machines Accessed 9 | . 1 . 1 . 1 1 3 2 Terminals 7 | . 1 . . . 1 . 3 2 Fabricators . | . . . . . . . . . Repair Stations 1 | . . . . . . 1 . . Recycling Units . | . . . . . . . . . Scanalyzers . | . . . . . . . . . Garrison Access . | . . . . . . . . . Total Hacks 42 | . 2 . 23 . 2 4 6 5 Successful 30 | . . . 23 . . 4 1 2 Failed 12 | . 2 . . . 2 . 5 3 Catastrophic 4 | . 1 . . . 1 . 2 . Database Lockouts . | . . . . . . . . . Manual 12 | . 3 . 1 . 2 . 6 . Terminals 15 | . 2 . . . 2 . 6 5 Fabricators . | . . . . . . . . . Repair Stations 4 | . . . . . . 4 . . Recycling Units . | . . . . . . . . . Scanalyzers . | . . . . . . . . . Garrison Access . | . . . . . . . . . Terminal Hacks 26 | . . . 23 . . . 1 2 Record 23 | . . . 23 . . . . . Open Door 1 | . . . . . . . . 1 Open DSF 1 | . . . . . . . 1 . Unreport Threat 1 | . . . . . . . . 1 Fabricator Hacks . | . . . . . . . . . Repair Station Hacks 4 | . . . . . . 4 . . Scan Component 2 | . . . . . . 2 . . Repair 2 | . . . . . . 2 . . Recycling Unit Hacks . | . . . . . . . . . Scanalyzer . | . . . . . . . . . Garrison Access Hacks . | . . . . . . . . . Unauthorized Hacks . | . . . . . . . . . Terminals . | . . . . . . . . . Fabricators . | . . . . . . . . . Repair Stations . | . . . . . . . . . Recycling Units . | . . . . . . . . . Scanalyzers . | . . . . . . . . . Garrison Access . | . . . . . . . . . Data Cores Recovered . | . . . . . . . . . Used . | . . . . . . . . . Hacking Detections 5 | . 1 . . . 1 1 1 1 Full Trace Events 3 | . 1 . . . . 1 1 . Feedback Events 1 | . . . . . . . 1 . Corruption 1 | . . . . . . . 1 . Feedback Blocked . | . . . . . . . . . Robot Schematics Acquired . | . . . . . . . . . Robots Built . | . . . . . . . . . Authchips . | . . . . . . . . . Time . | . . . . . . . . . Total Robot Build Rating . | . . . . . . . . . Part Schematics Acquired . | . . . . . . . . . Parts Built . | . . . . . . . . . Authchips . | . . . . . . . . . Time . | . . . . . . . . . Total Part Build Rating . | . . . . . . . . . Parts Repaired 2 | . . . . . . 2 . . Time 64 | . . . . . . 64 . . Parts Recycled . | . . . . . . . . . Recycled Matter . | . . . . . . . . . Retrieved Matter . | . . . . . . . . . Retrieved Components . | . . . . . . . . . Parts Scanalyzed . | . . . . . . . . . Part Schematics Acquired . | . . . . . . . . . Parts Damaged . | . . . . . . . . . Bothacking | -11 -10 -10 -10 -9 -8 -7 -6 -6 ------------ Run | Scr Mat Min Exi Min Mat Fac Fac Ext Used RIF Installer . | . . . . . . . . . Robots Hacked . | . . . . . . . . . Non-combat . | . . . . . . . . . Combat . | . . . . . . . . . Robot Hacks Applied . | . . . . . . . . . Relay Couplers Released . | . . . . . . . . . Fabnet Peak Effective % . | . . . . . . . . . Robots Rewired . | . . . . . . . . . Allies Hacked . | . . . . . . . . . Hacks Repelled . | . . . . . . . . . Allies | -11 -10 -10 -10 -9 -8 -7 -6 -6 -------- Run | Scr Mat Min Exi Min Mat Fac Fac Ext Total Allies 1 | . . . . . . . . 1 Largest Group 1 | . . . . . . . . 1 Highest-Rated Group 25 | . . . . . . . . 25 Highest-Rated Ally 25 | . . . . . . . . 25 Total Orders . | . . . . . . . . . Ally Attacks . | . . . . . . . . . Total Damage . | . . . . . . . . . Kills . | . . . . . . . . . Allies Corrupted . | . . . . . . . . . Allies Melted . | . . . . . . . . . Intel | -11 -10 -10 -10 -9 -8 -7 -6 -6 ------- Run | Scr Mat Min Exi Min Mat Fac Fac Ext Robot Analysis Total . | . . . . . . . . . Derelict Logs Recovered 3 | . . 2 . 1 . . . . Drone Launches . | . . . . . . . . . Drone Recoveries . | . . . . . . . . . Exploration | -11 -10 -10 -10 -9 -8 -7 -6 -6 ------------- Run | Scr Mat Min Exi Min Mat Fac Fac Ext Turns Passed 3198 | 68 90 83 548 166 287 700 631 625 Spaces Moved 2146 | 47 95 93 589 126 169 284 345 398 Core 33 | 20 . . . . . . . 13 Treads . | . . . . . . . . . Legs 1 | . . . . . . . . 1 Wheels 2112 | 27 95 93 589 126 169 284 345 384 Hover . | . . . . . . . . . Flight . | . . . . . . . . . Fastest Speed 50 | 50 90 90 90 105 95 101 101 50 Average Speed 103 | 83 90 90 92 111 99 103 113 117 Slowest Speed 950 | 150 90 90 105 135 145 116 116 950 Overloaded Moves . | . . . . . . . . . Propulsion Burnouts . | . . . . . . . . . Robots Hopped . | . . . . . . . . . Cave-ins Triggered 1 | . . . . . . . 1 . Exploration Rate (%) 28 | 4 16 29 81 48 21 5 9 46 Regions Visited 8 Branch Regions 4 Pre-discovered Areas 2 | . . 1 1 . . . . . Known Exits Taken 3 | . . . . 1 . 1 1 . Unknown Exits Taken 5 | 1 1 1 1 . 1 . . . Scrap Searched 1 | . . . . 1 . . . . Spaces Dug 14 | . . . . . . . 12 2 Terrain Destroyed 21 | . . . . . . . 12 9 Melee 14 | . . . . . . . 12 2 Projectile 7 | . . . . . . . . 7 AOE . | . . . . . . . . . Terrain Rammed . | . . . . . . . . . Walls Destroyed . | . . . . . . . . . Machines Disabled . | . . . . . . . . . Actions | -11 -10 -10 -10 -9 -8 -7 -6 -6 --------- Run | Scr Mat Min Exi Min Mat Fac Fac Ext Total 2916 | 64 98 92 592 150 247 663 510 500 Wait 490 | . . . . 21 29 330 92 18 Move 2138 | 46 94 92 588 125 168 283 344 398 Hop . | . . . . . . . . . Pick Up 59 | 8 . . 2 2 10 11 15 11 Fast Attach 6 | 2 3 . 1 . . . . . Attach 36 | 3 . . . . 10 10 2 11 Detach 4 | . . . . . 2 2 . . Swap 32 | . . . . 2 4 9 12 5 Drop 14 | . 1 . 1 . . 3 6 3 Fire 90 | 5 . . . . 24 15 22 24 Melee 18 | . . . . . . . 16 2 Ram 13 | . . . . . . . 1 12 Kick . | . . . . . . . . . Crush . | . . . . . . . . . Escape Stasis 16 | . . . . . . . . 16 Rewire . | . . . . . . . . . Trap . | . . . . . . . . . Miscellaneous . | . . . . . . . . . Route ------- -11/Scrapyard -10/Materials -10/Mines -10/Exiles (discovered 2 exits: [*Min x2]) -9/Mines (discovered 2 exits: *Mat x2) -8/Materials (discovered 2 exits: *Fac / Sto) -7/Factory -6/Factory -6/Extension History --------- Turn | Location | Event 8 | -11/Scrapyard | Discovered new exit (range 15) 69 | -11/Scrapyard | Entered Materials 130 | -10/Materials | Discovered new exit (range 10) 159 | -10/Materials | Entered Mines 174 | -10/Mines | Learned location of Zion (-7) 214 | -10/Mines | Assembled infested the area 238 | -10/Mines | Deemed a non-threat by the Exiles lab entrance 239 | -10/Mines | Discovered new exit (range 5) 242 | -10/Mines | Entered Exiles 264 | -10/Exiles | Met 8R-AWN 279 | -10/Exiles | Met EX-HEX 317 | -10/Exiles | Build established: Mutant 330 | -10/Exiles | Met EX-DEC 386 | -10/Exiles | Discovered new exit (range 14) 441 | -10/Exiles | Visited The Gauntlet 599 | -10/Exiles | Discovered new exit (range 14) 790 | -10/Exiles | Entered Mines 881 | -9/Mines | Identified exit to Materials 901 | -9/Mines | Discovered exit to Materials (range 10) 956 | -9/Mines | Entered Materials 956 | -8/Materials | Evolved 4 slots: Power x1, Propulsion x1, Utility x2 957 | -8/Materials | Identified exit to Storage 1173 | -8/Materials | Lost 4 parts (2p2n) 1220 | -8/Materials | Discovered new exit (range 16) 1243 | -8/Materials | Entered Factory 1243 | -7/Factory | Evolved 2 slots: Propulsion x2 1435 | -7/Factory | Repaired Wheel 1475 | -7/Factory | Repaired Minigun? 1742 | -7/Factory | Build established: Scavenger-Mutant 1832 | -7/Factory | Discovered new exit (range 15) 1941 | -7/Factory | Identified exit to Factory 1943 | -7/Factory | Entered another Factory area 1943 | -6/Factory | Evolved 2 slots: Utility x1, Weapon x1 2188 | -6/Factory | Found Prototype Processor 2272 | -6/Factory | Identified exit to DSF 2549 | -6/Factory | Crushed by falling debris 2553 | -6/Factory | Discovered new exit (range 9) 2572 | -6/Factory | Identified exit to Extension 2574 | -6/Factory | Entered Extension 2598 | -6/Extension | Lost 3 parts (2n1u) 2704 | -6/Extension | Spotted B-75 Beast 2775 | -6/Extension | Build established: Scavenger-Assassin 2839 | -6/Extension | Identified Exp. Targeting Computer 3013 | -6/Extension | Lost 7 parts (1p3n2u1w) 3084 | -6/Extension | Rescued a captive Derelict 3183 | -6/Extension | Released all parts (7) 3187 | -6/Extension | Core integrity fell below 50% 3195 | -6/Extension | Core integrity fell below 20% 3198 | -6/Extension | Spotted B-75 Beast 3199 | -6/Extension | Destroyed by B-75 Beast with Magnetic Acceleration Cannon Last Messages --------------- 03171_ Com. Wheel destroyed. 03183_ ALERT: Hostiles spotted, dispatching reinforcements to Terminal E010. 03183_ Released Hcp. Storage Unit. 03183_ Huge Storage Unit crushed and broken. 03183_ Machine Analyzer crushed and broken. 03183_ Plasma Cutter crushed and broken. 03183_ Released Exp. Targeting Computer. 03183_ Released Imp. Signal Interpreter. 03183_ Released Hvy. Flak Cannon. 03183_ Hvy. Flak Cannon crushed and broken. 03183_ Released Flexi-carbon Leg. 03183_ Flexi-carbon Leg crushed and broken. 03183_ Released Adv. Sensor Array. 03183_ Adv. Sensor Array crushed and broken. 03183_ Released Adv. Sensor Array. 03183_ Adv. Sensor Array crushed and broken. 03186_ System corrupted: Heat flow error (+275). 03186_ Slammed into W-25 Informer. 03187_ Slammed into Y-54 Guardian. Map ----- +----------------------------------------------------+ | #+########???????????????????????????????????????? | | #?###"#???????#####??????????????????????????? | | ### ######### #####??????????????????????? | | T =% [#??????????????????????? | | ### ####### ###]#??????????????????????? | | #?# #??####"/##?#!#??????????????????????? | | ## ##?# #### [ #?#!#??????????????????????? | | ?# T#?# " %[[ #?#!#??????????????????????? | | ?# ##?######"### #?#!#??????????????????????? | | ?# #??????# #### [ #?#/#??????????????????????? | | ?###??????###??# #?#[#??????????????????????? | | ???????????????# = #?#!#??????????????????????? | | ???????????????########?#Y#??????????????????????? | | ????????????????????????#Y#??????????????????????? | | ?????????????????########w#??????????????????????? | | ??????????????####!! # #??????????????????????? | | ??????????????#"""! / # #??????????????????????? | | ??????????????#"T /Y#??????????????????????? | | ??????????????#""" "T"" # #??????????????????????? | | ???????????????### """" #Y#??????????????????????? | | ????????????????# # #??????????????????????? | | ????????????????###T##### #??????????????????????? | | ??????????????????##????# #??????????????????????? | | ??????????????????????### ### ## ###?????????????? | | ??????????????????????#"" "" ""?????????????? | | ??????????????????????# "@" " ????????????? | | ??????????????????????# Y% u ??????????? | | ??????????????????????# R ??????????? | | ##################"#### ???????????? | | ???????????? | | u ????????????? | | ???????????? | | ??????????? | | t R R R ???????????? | | ####################### BB BB ???????????? | | ??????????????????????# BB BB ????????????? | | ??????????????????????# ????????????? | | ??????????????????????# ??????????????? | | ??????????????????????# ????????????????? | | ??????????????????????######T#???????????????????? | | ?????????????????????????????????????????????????? | | ?????????????????????????????????????????????????? | | | | | | | | | | | | | | | | | +----------------------------------------------------+ Best States ------------- Heat Dissipation 37 Energy Generation 27 Energy Capacity 480 Matter Stores 300 Matter Capacity 400 Sight Range 16 Robot Scan Range 16 Terrain Scan Range 14 Terrain Scan Density 85 Evasion (%) 45 Targeting Accuracy 12 Kinecelleration 30 Offensive Hacking 12 Item Schematics ----------------- None Robot Schematics ------------------ None Fabricated ------------ Nothing Alien Tech Used ----------------- None Achievements -------------- Part-time Excavator Challenges ------------ None Game ------ Seed HardcellAccelerationStreamer Manual? 0 Play Time 01:19:53 Cumulative 162.5 hours Start 2022.07.09 @ 16:32:48 End 2022.07.10 @ 02:01:55 Sessions 3 Manual Loads 0 Difficulty Rogue Special Mode None Game No. 39 Rogue 39 Adventurer 0 Explorer 0 Win Type - Total 0 Types 0/0/0/0/0/0/0/0/0 Lore% 18 Gallery% 31 Achievement% 17 Wizard Run 0 Options --------- ASCII 0 Keyboard 0 Movement Mouse Keybinds 0 Fullscreen 2 Font 24/Smallcaps Map View 76x50 Tactical HUD 1 Map Filters NONE Filters NONE Steam 1 RUN: 4e8634b5-d2ee-4508-a5ad-e0d665e7ad63